fUST/lending_fUST_20260420
["ID","MTS","AMOUNT","RATE_DAILY","PERIOD"]
[420869342,1776679846118,-1482.88026848,0.00013698,2]
[420869343,1776679846128,-500.0,0.00013698,2]
[420869344,1776679846137,-500.0,0.00013698,2]
[420869345,1776679846147,-308.41303563,0.00013698,2]
[420869346,1776679846156,-506.54,0.00013698,2]
[420869347,1776679846165,-746.38,0.00013698,2]
[420869348,1776679846175,-391.94897771,0.00013698,2]
[420869349,1776679846184,-1075.02,0.00013698,2]
[420869351,1776679846194,-1315.3,0.00013698,2]
[420869352,1776679846203,-500.0,0.00013698,2]
[420869353,1776679846212,-1051.56,0.00013698,2]
[420869354,1776679846221,-500.0,0.00013698,2]
[420869355,1776679846230,-500.0,0.00013698,2]
[420869356,1776679846239,-500.0,0.00013698,2]
[420869357,1776679846249,-500.0,0.00013698,2]
[420869358,1776679846259,-1185.26,0.00013698,2]
[420869359,1776679846268,-500.0,0.00013698,2]
[420869360,1776679846277,-1371.01,0.00013698,2]
[420869361,1776679846287,-1168.69,0.00013698,2]
[420869362,1776679846296,-1174.41,0.00013698,2]
[420869363,1776679846305,-500.0,0.00013698,2]
[420869364,1776679846314,-596.59,0.00013698,2]
[420869365,1776679846323,-475.42950063,0.00013698,2]
[420869366,1776679846333,-500.0,0.00013698,2]
[420869367,1776679846342,-1282.45,0.00013698,2]
[420869368,1776679846351,-252.91347024,0.00013698,2]
[420869369,1776679846360,-500.0,0.00013698,2]
[420869370,1776679846369,-500.0,0.00013698,2]
[420869371,1776679846379,-2419.31,0.00013698,2]
[420869372,1776679846388,-1289.85,0.00013698,2]
[420869373,1776679846397,-500.0,0.00013698,2]
[420869374,1776679846406,-500.0,0.00013698,2]
[420869375,1776679846415,-500.0,0.00013698,2]
[420869376,1776679846424,-500.0,0.00013698,2]
[420869377,1776679846433,-500.0,0.00013698,2]
[420869378,1776679846442,-760.42,0.00013698,2]
[420869379,1776679846451,-500.0,0.00013698,2]
[420869380,1776679846461,-1122.12,0.00013698,2]
[420869381,1776679846470,-500.0,0.00013698,2]
[420869382,1776679846480,-500.0,0.00013698,2]
[420869383,1776679846489,-500.0,0.00013698,2]
[420869384,1776679846498,-599.93,0.00013698,2]
[420869385,1776679846508,-500.0,0.00013698,2]
[420869386,1776679846517,-500.0,0.00013698,2]
[420869387,1776679846526,-1549.18,0.00013698,2]
[420869388,1776679846535,-329.88411156,0.00013698,2]
[420869389,1776679846545,-500.0,0.00013698,2]
[420869390,1776679846554,-982.3,0.00013698,2]
[420869391,1776679846563,-500.0,0.00013698,2]
[420869392,1776679846572,-817.81,0.00013698,2]
[420869393,1776679846582,-500.0,0.00013698,2]
[420869394,1776679846591,-500.0,0.00013698,2]
[420869395,1776679846600,-500.0,0.00013698,2]
[420869396,1776679846609,-500.0,0.00013698,2]
[420869397,1776679846618,-721.05,0.00013698,2]
[420869398,1776679846627,-500.0,0.00013698,2]
[420869399,1776679846636,-1267.67,0.00013698,2]
[420869400,1776679846646,-907.25,0.00013698,2]
[420869401,1776679846655,-500.0,0.00013698,2]
[420869402,1776679846665,-500.0,0.00013698,2]
[420869403,1776679846674,-500.0,0.00013698,2]
[420869404,1776679846683,-500.0,0.00013698,2]
[420869405,1776679846692,-546.49,0.00013698,2]
[420869406,1776679846702,-500.0,0.00013698,2]
[420869407,1776679846711,-500.0,0.00013698,2]
[420869408,1776679846721,-4324.53,0.00013698,2]
[420869409,1776679846729,-1002.45,0.00013698,2]
[420869410,1776679846739,-674.49,0.00013698,2]
[420869411,1776679846748,-777.68,0.00013698,2]
[420869412,1776679846757,-719.0,0.00013698,2]
[420869413,1776679846766,-500.0,0.00013698,2]
[420869414,1776679846775,-500.0,0.00013698,2]
[420869415,1776679846784,-831.47,0.00013698,2]
[420869416,1776679846794,-879.51,0.00013698,2]
[420869417,1776679846803,-500.0,0.00013698,2]
[420869418,1776679846812,-500.0,0.00013698,2]
[420869419,1776679846822,-536.07,0.00013698,2]
[420869420,1776679846831,-500.0,0.00013698,2]
[420869421,1776679846841,-559.49,0.00013698,2]
[420869422,1776679846850,-500.0,0.00013698,2]
[420869423,1776679846859,-500.0,0.00013698,2]
[420869424,1776679846870,-520.73547892,0.00013698,2]
[420869425,1776679846880,-1807.38,0.00013698,2]
[420869426,1776679846889,-712.84,0.00013698,2]
[420869427,1776679846898,-1000.0,0.00013698,2]
[420869428,1776679846908,-1322.54,0.00013698,2]
[420869429,1776679846917,-500.0,0.00013698,2]
[420869430,1776679846927,-533.89,0.00013698,2]
[420869431,1776679846936,-1961.43,0.00013698,2]
[420869432,1776679846945,-294.90599855,0.00013698,2]
[420869433,1776679846954,-516.81,0.00013698,2]
[420869434,1776679846963,-814.04,0.00013698,2]
[420869435,1776679846972,-977.32,0.00013698,2]
[420869436,1776679846982,-2946.1,0.00013698,2]
[420869437,1776679846991,-513.03423418,0.00013698,2]
[420869438,1776679847001,-500.0,0.00013698,2]
[420869439,1776679847011,-500.0,0.00013698,2]
[420869440,1776679847020,-500.0,0.00013698,2]
[420869441,1776679847029,-766.17,0.00013698,2]
[420869442,1776679847038,-500.0,0.00013698,2]
[420869443,1776679847048,-1385.23,0.00013698,2]
[420869444,1776679847057,-1591.87,0.00013698,2]
[420869445,1776679847067,-453.86427741,0.00013698,2]
[420869446,1776679847076,-500.0,0.00013698,2]
[420869447,1776679847085,-500.0,0.00013698,2]
[420869448,1776679847094,-665.39,0.00013698,2]
[420869449,1776679847104,-500.0,0.00013698,2]
[420869450,1776679847113,-500.0,0.00013698,2]
[420869451,1776679847122,-500.0,0.00013698,2]
[420869452,1776679847131,-598.02,0.00013698,2]
[420869453,1776679847140,-3222.92,0.00013698,2]
[420869454,1776679847149,-500.0,0.00013698,2]
[420869455,1776679847159,-500.0,0.00013698,2]
[420869456,1776679847169,-500.0,0.00013698,2]
[420869457,1776679847178,-500.0,0.00013698,2]
[420869458,1776679847187,-5687.86,0.00013698,2]
[420869459,1776679847197,-500.0,0.00013698,2]
[420869460,1776679847206,-1965.8,0.00013698,2]
[420869461,1776679847215,-752.31,0.00013698,2]
[420869462,1776679847224,-9783.33,0.00013698,2]
[420869463,1776679847234,-878.69,0.00013698,2]
[420869464,1776679847243,-611.46,0.00013698,2]
[420869465,1776679847252,-500.0,0.00013698,2]
[420869466,1776679847262,-547.23,0.00013698,2]
[420869467,1776679847272,-1256.27,0.00013698,2]
[420869468,1776679847281,-500.0,0.00013698,2]
[420869469,1776679847290,-500.0,0.00013698,2]
[420869470,1776679847300,-5136.64,0.00013698,2]
[420869471,1776679847309,-253.01683298,0.00013698,2]
[420869472,1776679847318,-9300.25,0.00013698,2]
[420869473,1776679847327,-1000.0,0.00013698,2]
[420869474,1776679847337,-500.0,0.00013698,2]
[420869475,1776679847345,-1000.0,0.00013698,2]
[420869476,1776679847355,-15779.39660311,0.00013698,2]
[420869477,1776679847370,-17590.11092146,0.00013698,2]
[420869635,1776681024251,-5000.0,5.795e-05,2]
[420869636,1776681024273,-151.0,5.854e-05,2]
[420869637,1776681024294,-504.0,5.854e-05,2]
[420869638,1776681024316,-150.0,6.036e-05,2]
[420869639,1776681024337,-167.6495947,6.16e-05,2]
[420869640,1776681024359,-300.0,6.218e-05,2]
[420869641,1776681024382,-300.0,6.218e-05,2]
[420869642,1776681024407,-300.0,6.219e-05,2]
[420869643,1776681024433,-300.0,6.219e-05,2]
[420869644,1776681024461,-300.0,6.219e-05,2]
[420869645,1776681024487,-300.0,6.219e-05,2]
[420869646,1776681024511,-300.0,6.219e-05,2]
[420869647,1776681024537,-300.0,6.219e-05,2]
[420869648,1776681024561,-300.0,6.219e-05,2]
[420869649,1776681024586,-300.0,6.219e-05,2]
[420869650,1776681024611,-300.0,6.219e-05,2]
[420869651,1776681024636,-300.0,6.219e-05,2]
[420869652,1776681024661,-300.0,6.219e-05,2]
[420869653,1776681024686,-127.3504053,6.219e-05,2]
[420869654,1776681026877,-172.6495947,6.219e-05,2]
[420869655,1776681026902,-300.0,6.219e-05,2]
[420869656,1776681026927,-300.0,6.219e-05,2]
[420869657,1776681026952,-300.0,6.219e-05,2]
[420869658,1776681026973,-151.0,6.322e-05,2]
[420869659,1776681026996,-177.0,8.036e-05,2]
[420869660,1776681027017,-151.0,9.354e-05,2]
[420869661,1776681027037,-151.0,9.354e-05,2]
[420869672,1776681029169,250.63877223,7.825e-05,2]
[420869702,1776681037024,-204.0,0.00010036,2]
[420869703,1776681037046,-7147.6736384,0.0001078,2]
[420869705,1776681038453,-215.4374073,0.00011092,2]
[420869706,1776681038463,-500.0,0.00011731,2]
[420869707,1776681038472,-231.0,0.00012036,2]
[420869708,1776681038481,-212.04,0.00012133,2]
[420869709,1776681038491,-226.29,0.00012318,2]
[420869710,1776681038500,-226.29,0.00012676,2]
[420869711,1776681038509,-300.0,0.00013,2]
[420869712,1776681038519,-537.6845,0.00013531,2]
[420869713,1776681038528,-2150.738,0.00013531,2]
[420869714,1776681038537,-557.5788265,0.00013586,2]
[420869715,1776681038547,-444.41478197,0.00013598,2]
[420869716,1776681038557,-578.20924308,0.00013641,2]
[420869717,1776681038566,-500.0,0.00013673,2]
[420869718,1776681038575,-210.01994498,0.00013673,2]
[420869719,1776681038585,-500.0,0.00013673,2]
[420869720,1776681038594,-500.0,0.00013673,2]
[420869721,1776681038604,-500.0,0.00013673,2]
[420869722,1776681038614,-500.0,0.00013673,2]
[420869723,1776681038623,-503.54666915,0.00013673,2]
[420869724,1776681038632,-208.22102556,0.00013673,2]
[420869725,1776681038641,-500.0,0.00013673,2]
[420869726,1776681038651,-358.478731,0.00013678,2]
[420869727,1776681038660,-326.7793093,0.00013679,2]
[420869728,1776681038670,-163.62501956,0.00013689,2]
[420869729,1776681038679,-162.63906551,0.00013689,2]
[420869730,1776681038688,-151.58156834,0.00013689,2]
[420869731,1776681038697,-478.75065184,0.00013689,2]
[420869732,1776681038707,-537.6845,0.00013689,2]
[420869733,1776681038716,-599.60298507,0.00013696,2]
[420869734,1776681038726,-500.0,0.00013697,2]
[420869735,1776681038735,-500.0,0.00013697,3]
[420869736,1776681038744,-500.0,0.00013697,4]
[420869737,1776681038753,-500.0,0.00013697,5]
[420869738,1776681038763,-500.0,0.00013697,6]
[420869739,1776681038771,-500.0,0.00013697,7]
[420869740,1776681038780,-500.0,0.00013697,8]
[420869741,1776681038790,-500.0,0.00013697,2]
[420869742,1776681038799,-500.0,0.00013697,2]
[420869743,1776681038808,-500.0,0.00013697,2]
[420869744,1776681038817,-500.0,0.00013697,2]
[420869745,1776681038827,-500.0,0.00013697,2]
[420869746,1776681038836,-500.0,0.00013697,2]
[420869747,1776681038845,-500.0,0.00013697,2]
[420869748,1776681038855,-500.0,0.00013697,2]
[420869749,1776681038864,-500.0,0.00013697,2]
[420869750,1776681038873,-500.0,0.00013697,2]
[420869751,1776681038883,-500.0,0.00013697,2]
[420869752,1776681038892,-500.0,0.00013697,2]
[420869753,1776681038901,-480.97159723,0.00013697,2]
[420869754,1776681038910,-500.0,0.00013697,2]
[420869755,1776681038919,-593.72513696,0.00013697,2]
[420869756,1776681038928,-500.0,0.00013697,2]
[420869757,1776681038938,-500.0,0.00013697,2]
[420869758,1776681038947,-500.0,0.00013697,2]
[420869759,1776681038957,-365.27833663,0.00013697,2]
[420869760,1776681038966,-500.0,0.00013697,2]
[420869761,1776681038975,-500.0,0.00013697,2]
[420869762,1776681038984,-500.0,0.00013697,2]
[420869763,1776681038994,-500.0,0.00013697,2]
[420869764,1776681039004,-640.76411651,0.00013697,2]
[420869765,1776681039013,-500.0,0.00013698,2]
[420869766,1776681039022,-1135.87,0.00013698,2]
[420869767,1776681039031,-1120.0,0.00013698,2]
[420869768,1776681039040,-965.75,0.00013698,2]
[420869769,1776681039049,-480.7410359,0.00013698,2]
[420869770,1776681039060,-500.0,0.00013698,2]
[420869771,1776681039069,-1236.1,0.00013698,2]
[420869772,1776681039079,-1229.01,0.00013698,2]
[420869773,1776681039088,-1125.47,0.00013698,2]
[420869774,1776681039097,-500.0,0.00013698,2]
[420869775,1776681039107,-500.0,0.00013698,2]
[420869776,1776681039116,-575.8504476,0.00013698,2]
[420869777,1776681039126,-500.0,0.00013698,2]
[420869778,1776681039135,-500.0,0.00013698,2]
[420869779,1776681039144,-472.3871444,0.00013698,2]
[420869780,1776681039154,-1484.63,0.00013698,2]
[420869781,1776681039163,-500.0,0.00013698,2]
[420869782,1776681039172,-500.0,0.00013698,2]
[420869783,1776681039181,-500.0,0.00013698,2]
[420869784,1776681039191,-500.0,0.00013698,2]
[420869785,1776681039200,-745.28,0.00013698,2]
[420869786,1776681039209,-500.0,0.00013698,2]
[420869787,1776681039219,-538.85616103,0.00013698,2]
[420869788,1776681039228,-941.37,0.00013698,2]
[420869789,1776681039237,-500.0,0.00013698,2]
[420869790,1776681039247,-500.0,0.00013698,2]
[420869791,1776681039256,-500.0,0.00013698,2]
[420869792,1776681039265,-500.0,0.00013698,2]
[420869793,1776681039275,-960.69,0.00013698,2]
[420869794,1776681039284,-500.0,0.00013698,2]
[420869795,1776681039294,-500.0,0.00013698,2]
[420869796,1776681039304,-536.18,0.00013698,2]
[420869797,1776681039313,-955.3,0.00013698,2]
[420869798,1776681039322,-523.72,0.00013698,2]
[420869799,1776681039331,-500.0,0.00013698,2]
[420869800,1776681039340,-500.0,0.00013698,2]
[420869801,1776681039350,-500.0,0.00013698,2]
[420869802,1776681039359,-842.86,0.00013698,2]
[420869803,1776681039368,-500.0,0.00013698,2]
[420869804,1776681039378,-500.0,0.00013698,2]
[420869805,1776681039387,-500.0,0.00013698,2]
[420869806,1776681039397,-513.73,0.00013698,2]
[420869807,1776681039407,-166.30796643,0.00013698,2]
[420869808,1776681039416,-500.0,0.00013698,2]
[420869809,1776681039425,-1000.0,0.00013698,2]
[420869810,1776681039435,-500.0,0.00013698,2]
[420869811,1776681039444,-500.0,0.00013698,2]
[420869812,1776681039453,-500.0,0.00013698,2]
[420869813,1776681039462,-500.0,0.00013698,2]
[420869814,1776681039471,-500.0,0.00013698,2]
[420869815,1776681039480,-500.0,0.00013698,2]
[420869816,1776681039490,-500.0,0.00013698,2]
[420869817,1776681039499,-500.0,0.00013698,2]
[420869818,1776681039510,-500.0,0.00013698,2]
[420869819,1776681039519,-500.0,0.00013698,2]
[420869820,1776681039529,-500.0,0.00013698,2]
[420869821,1776681039538,-1327.52,0.00013698,2]
[420869822,1776681039547,-787.8,0.00013698,2]
[420869823,1776681039557,-500.0,0.00013698,2]
[420869824,1776681039566,-500.0,0.00013698,2]
[420869825,1776681039575,-1373.49,0.00013698,2]
[420869826,1776681039584,-500.0,0.00013698,2]
[420869827,1776681039594,-500.0,0.00013698,2]
[420869828,1776681039603,-500.0,0.00013698,2]
[420869829,1776681039613,-500.0,0.00013698,2]
[420869830,1776681039622,-1124.15,0.00013698,2]
[420869831,1776681039631,-500.0,0.00013698,2]
[420869832,1776681039641,-548.23,0.00013698,2]
[420869833,1776681039652,-500.0,0.00013698,2]
[420869834,1776681039661,-761.8,0.00013698,2]
[420869835,1776681039670,-500.0,0.00013698,2]
[420869837,1776681039680,-601.02,0.00013698,2]
[420869838,1776681039689,-597.67,0.00013698,2]
[420869839,1776681039698,-500.0,0.00013698,2]
[420869840,1776681039707,-546.49392888,0.00013698,2]
[420869841,1776681039716,-500.0,0.00013698,2]
[420869842,1776681039726,-500.0,0.00013698,2]
[420869843,1776681039735,-500.0,0.00013698,2]
[420869844,1776681039743,-2423.7,0.00013698,2]
[420869845,1776681039752,-819.29,0.00013698,2]
[420869846,1776681039761,-508.31,0.00013698,2]
[420869847,1776681039771,-500.0,0.00013698,2]
[420869848,1776681039781,-500.0,0.00013698,2]
[420869849,1776681039791,-500.0,0.00013698,2]
[420869850,1776681039800,-500.0,0.00013698,2]
[420869851,1776681039810,-500.0,0.00013698,2]
[420869854,1776681039819,-500.0,0.00013698,2]
[420869856,1776681039830,-500.0,0.00013698,2]
[420869858,1776681039839,-545.00250431,0.00013698,2]
[420869859,1776681039848,-500.0,0.00013698,2]
[420869860,1776681039858,-4332.37,0.00013698,2]
[420869861,1776681039868,-500.0,0.00013698,2]
[420869862,1776681039879,-500.0,0.00013698,2]
[420869864,1776681039889,-500.0,0.00013698,2]
[420869866,1776681039898,-500.0,0.00013698,2]
[420869868,1776681039911,-500.0,0.00013698,2]
[420869870,1776681039920,-500.0,0.00013698,2]
[420869872,1776681039930,-1249.76,0.00013698,2]
[420869874,1776681039939,-500.0,0.00013698,2]
[420869876,1776681039948,-500.0,0.00013698,2]
[420869877,1776681039958,-500.0,0.00013698,2]
[420869878,1776681039967,-500.0,0.00013698,2]
[420869879,1776681039976,-500.0,0.00013698,2]
[420869880,1776681039986,-1269.96,0.00013698,2]
[420869881,1776681039995,-1000.0,0.00013698,2]
[420869882,1776681040004,-500.0,0.00013698,2]
[420869883,1776681040013,-500.0,0.00013698,2]
[420869884,1776681040022,-1324.94,0.00013698,2]
[420869885,1776681040031,-758.93,0.00013698,2]
[420869886,1776681040041,-265.33492919,0.00013698,2]
[420869887,1776681040050,-928.51,0.00013698,2]
[420869888,1776681040060,-500.0,0.00013698,2]
[420869889,1776681040070,-720.3,0.00013698,2]
[420869890,1776681040079,-500.0,0.00013698,2]
[420869891,1776681040089,-693.56,0.00013698,2]
[420869892,1776681040098,-516.5,0.00013698,2]
[420869893,1776681040108,-767.56,0.00013698,2]
[420869894,1776681040117,-500.0,0.00013698,2]
[420869895,1776681040127,-500.0,0.00013698,2]
[420869896,1776681040136,-908.9,0.00013698,2]
[420869897,1776681040145,-500.0,0.00013698,2]
[420869898,1776681040155,-500.0,0.00013698,2]
[420869899,1776681040165,-500.0,0.00013698,2]
[420869900,1776681040174,-974.2,0.00013698,2]
[420869901,1776681040183,-1810.66,0.00013698,2]
[420869902,1776681040193,-500.0,0.00013698,2]
[420869903,1776681040202,-1594.76,0.00013698,2]
[420869904,1776681040212,-500.0,0.00013698,2]
[420869905,1776681040221,-666.6,0.00013698,2]
[420869906,1776681040231,-694.54,0.00013698,2]
[420869907,1776681040240,-500.0,0.00013698,2]
[420869908,1776681040250,-500.0,0.00013698,2]
[420869909,1776681040259,-614.44,0.00013698,2]
[420869910,1776681040268,-500.0,0.00013698,2]
[420869911,1776681040277,-1969.36,0.00013698,2]
[420869912,1776681040286,-517.74,0.00013698,2]
[420869913,1776681040296,-500.0,0.00013698,2]
[420869914,1776681040304,-500.0,0.00013698,2]
[420869915,1776681040314,-2951.43,0.00013698,2]
[420869916,1776681040323,-675.71,0.00013698,2]
[420869917,1776681040332,-500.0,0.00013698,2]
[420869918,1776681040342,-1090.75,0.00013698,2]
[420869919,1776681040351,-1869.97,0.00013698,2]
[420869920,1776681040360,-500.0,0.00013698,2]
[420869921,1776681040370,-654.73,0.00013698,2]
[420869922,1776681040379,-500.0,0.00013698,2]
[420869923,1776681040388,-500.0,0.00013698,2]
[420869924,1776681040398,-832.98,0.00013698,2]
[420869925,1776681040407,-5450.86,0.00013698,2]
[420869926,1776681040416,-765.1,0.00013698,2]
[420869927,1776681040425,-1236.82,0.00013698,2]
[420869928,1776681040434,-500.0,0.00013698,2]
[420869929,1776681040443,-9375.69,0.00013698,2]
[420869930,1776681040452,-500.0,0.00013698,2]
[420869931,1776681040461,-3088.55,0.00013698,2]
[420869932,1776681040470,-500.0,0.00013698,2]
[420869934,1776681040479,-714.13,0.00013698,2]
[420869935,1776681040489,-500.0,0.00013698,2]
[420869937,1776681040498,-500.0,0.00013698,2]
[420869938,1776681040507,-5093.47,0.00013698,2]
[420869940,1776681040517,-1023.33,0.00013698,2]
[420869942,1776681040526,-1964.98,0.00013698,2]
[420869944,1776681040535,-500.0,0.00013698,2]
[420869945,1776681040544,-500.0,0.00013698,2]
[420869947,1776681040554,-1000.0,0.00013698,2]
[420869949,1776681040563,-8912.74,0.00013698,2]
[420869950,1776681040572,-500.0,0.00013698,2]
[420869952,1776681040581,-1000.0,0.00013698,2]
[420869954,1776681040590,-1000.0,0.00013698,2]
[420869956,1776681040599,-352.26175312,0.00013698,2]
[420869957,1776681040608,-1000.0,0.00013698,2]
[420869958,1776681040617,-1000.0,0.00013698,2]
[420869959,1776681040626,-1000.0,0.00013698,2]
[420869961,1776681040635,-500.0,0.00013698,2]
[420869963,1776681040644,-1171.09,0.00013698,2]
[420869965,1776681040653,-1000.0,0.00013698,2]
[420869967,1776681040662,-1000.0,0.00013698,2]
[420869968,1776681040671,-979.09,0.00013698,2]
[420869970,1776681040680,-1000.0,0.00013698,2]
[420869972,1776681040689,-1000.0,0.00013698,2]
[420869974,1776681040698,-1000.0,0.00013698,2]
[420869976,1776681040707,-1000.0,0.00013698,2]
[420869978,1776681040716,-1000.0,0.00013698,2]
[420869980,1776681040727,-500.0,0.00013698,2]
[420869982,1776681040736,-4445.53,0.00013698,2]
[420869984,1776681040746,-756.39359825,0.00013698,2]
[420869986,1776681040755,-500.0,0.00013698,2]
[420869988,1776681040765,-500.0,0.00013698,2]
[420869990,1776681040774,-1697.93,0.00013698,2]
[420869992,1776681040783,-500.0,0.00013698,2]
[420869994,1776681040792,-524.48,0.00013698,2]
[420869996,1776681040801,-500.0,0.00013698,2]
[420869998,1776681040811,-936.62,0.00013698,2]
[420870000,1776681040820,-500.0,0.00013698,2]
[420870002,1776681040830,-599.1,0.00013698,2]
[420870004,1776681040839,-1960.98,0.00013698,2]
[420870006,1776681040848,-1345.8,0.00013698,2]
[420870008,1776681040858,-3775.04,0.00013698,2]
[420870010,1776681040867,-555.09,0.00013698,2]
[420870012,1776681040876,-177.01052247,0.00013698,2]
[420870014,1776681040885,-2361.7689274,0.00013698,2]
[420870036,1776681041101,610.97136293,9.935e-05,2]
[420870037,1776681041121,-833.52679593,0.00013698,2]
[420870038,1776681041132,-1632.72523242,0.00013698,2]
[420870184,1776681045803,-8368.95904425,0.00013698,2]
[420870185,1776681045813,-1187.71,0.00013698,2]
[420870186,1776681045823,-443.33095575,0.00013698,2]
[420870187,1776681045833,-56.66904425,0.00013698,2]
[420870188,1776681045843,-500.0,0.00013698,2]
[420870189,1776681045852,-1722.14003569,0.00013698,2]
[420870191,1776681045941,-3946.86996431,0.00013698,2]
[420870192,1776681045950,-500.0,0.00013698,2]
[420870193,1776681045959,-500.0,0.00013698,2]
[420870194,1776681045968,-500.0,0.00013698,2]
[420870195,1776681045977,-4197.11591561,0.00013698,2]
[420870198,1776681046371,-2585.94242598,0.00013698,2]
[420870199,1776681046485,-2292.0,0.00013698,2]
[420870211,1776681101065,-151.0,0.0001073,2]
[420870224,1776681245689,-524.0,0.00011588,2]
[420870225,1776681245914,-151.0,0.00011588,2]
[420870226,1776681245939,-5000.0,0.00013561,2]
[420870227,1776681245964,-150.0,0.0001358,2]
[420870228,1776681245988,-152.0,0.0001366,7]
[420870229,1776681246012,-152.0,0.0001366,7]
[420870230,1776681246036,-152.0,0.0001366,7]
[420870231,1776681246058,-500.0,0.00013697,2]
[420870232,1776681246079,-500.0,0.00013697,3]
[420870233,1776681246101,-500.0,0.00013697,4]
[420870234,1776681246122,-500.0,0.00013697,5]
[420870235,1776681246143,-500.0,0.00013697,6]
[420870236,1776681246164,-500.0,0.00013697,7]
[420870237,1776681246186,-500.0,0.00013698,2]
[420870238,1776681246206,-219.0,0.00013698,2]
[420870371,1776681786169,-165.04577963,0.00012168,2]
[420870372,1776681786193,-150.0,0.00012773,2]
[420870373,1776681786215,-151.5,0.00013424,2]
[420870374,1776681786238,-151.5,0.00013424,2]
[420870375,1776681786258,-197.0,0.00013424,2]
[420870376,1776681786281,-455.91277368,0.00013598,2]
[420870377,1776681786304,-152.0,0.00013614,7]
[420870378,1776681786329,-152.0,0.00013614,7]
[420870379,1776681786350,-2150.738,0.0001369,2]
[420870380,1776681786371,-281.0,0.00013698,2]
[420870381,1776681786391,-822.53,0.00013698,2]
[420870382,1776681786412,-1069.4,0.00013698,2]
[420870383,1776681786432,-514.56953841,0.00013698,2]
[420870384,1776681786454,-762.1,0.00013698,2]
[420870385,1776681786474,-1442.58,0.00013698,2]
[420870386,1776681786494,-500.0,0.00013698,2]
[420870387,1776681786515,-882.12390828,0.00013698,2]
[420870538,1776682232499,-1716.28769692,0.00012362,2]
[420870540,1776682232510,-150.0,0.00013332,2]
[420870542,1776682232521,-152.0,0.0001365,7]
[420870544,1776682232530,-152.0,0.0001365,7]
[420870546,1776682232542,-152.0,0.0001365,7]
[420870549,1776682232565,-537.6845,0.0001369,2]
[420870550,1776682232587,-537.6845,0.0001369,2]
[420870552,1776682232605,-2150.738,0.0001369,2]
[420870554,1776682232615,-500.0,0.00013697,2]
[420870556,1776682232624,-275.6635108,0.00013697,2]
[420870558,1776682232635,-373.91981518,0.00013697,2]
[420870560,1776682232645,-500.0,0.00013697,2]
[420870562,1776682232656,-298.53488155,0.00013697,2]
[420870564,1776682232667,-500.0,0.00013698,2]
[420870566,1776682232679,-366.45623943,0.00013698,2]
[420870568,1776682232690,-1465.82495772,0.00013698,2]
[420870570,1776682232700,-1272.2,0.00013698,2]
[420870572,1776682232711,-500.0,0.00013698,2]
[420870574,1776682232721,-361.95532884,0.00013698,2]
[420870576,1776682232732,-500.0,0.00013698,2]
[420870578,1776682232742,-754.97,0.00013698,2]
[420870580,1776682232754,-500.0,0.00013698,2]
[420870582,1776682232765,-500.0,0.00013698,2]
[420870584,1776682232775,-500.0,0.00013698,2]
[420870586,1776682232786,-901.7,0.00013698,2]